{"text_format":"1","workbook":"xlsx","n_sheets":2,"sheets":["データ","グラフ"],"not_rendered":{"charts":2,"images":0,"macros":1,"external_links":0,"defined_names":1,"comments":0,"pivot_tables":0},"unopened":[],"bounds":{"document_bytes":16777216,"sheet_cells":100000,"rows_first":2000,"rows_last":500,"rows_between":2000,"halvings":0,"cell_chars":16384,"cell_head_chars":4096},"cells_cut":0,"cells_raw":0,"read":"whole","date_system":"1900"}

{"sheet":"データ","index":0,"n_rows":65,"n_cols":335,"rows_kept":65,"cut":false,"hidden":false,"merged":[]}
["年度","県コード","水域コード","地点コード","絶対番号","水域名称_漢字","地点名称_漢字","採取年","採取月日","採取時分",null,null,"採取年月","調査主体コード","調査区分コード","採取位置コード","採取水深","コメント_天候コード","天候コード","コメント_流況コード","流況コード","コメント_臭気コード","臭気コード","コメント_色相コード","色相コード","コメント_気温","気温","コメント_水温","水温","コメント_流量","流量","コメント_全水深","全水深","コメント_透明度","透明度","コメント_pH","pH","コメント_DO","DO","コメント_BOD","BOD","コメント_COD","COD","コメント_SS","SS","コメント_大腸菌群数","大腸菌群数","コメント_n-ヘキサン抽出物質_油分等","n-ヘキサン抽出物質_油分等","コメント_全窒素","全窒素","コメント_全燐","全燐","コメント_カドミウム","カドミウム","コメント_全シアン","全シアン","コメント_鉛","鉛","コメント_六価クロム","六価クロム","コメント_砒素","砒素","コメント_総水銀","総水銀","コメント_アルキル水銀","アルキル水銀","コメント_PCB","PCB","コメント_ジクロロメタン","ジクロロメタン","コメント_四塩化炭素","四塩化炭素","コメント_1,2-ジクロロエタン","1,2-ジクロロエタン","コメント_1,1-ジクロロエチレン","1,1-ジクロロエチレン","コメント_シス-1,2-ジクロロエチレン","シス-1,2-ジクロロエチレン","コメント_1,2-ジクロロエチレン","1,2-ジクロロエチレン","コメント_1,1,1-トリクロロエタン","1,1,1-トリクロロエタン","コメント_1,1,2-トリクロロエタン","1,1,2-トリクロロエタン","コメント_トリクロロエチレン","トリクロロエチレン","コメント_テトラクロロエチレン","テトラクロロエチレン","コメント_1,3-ジクロロプロペン","1,3-ジクロロプロペン","コメント_チウラム","チウラム","コメント_シマジン","シマジン","コメント_チオベンカルブ","チオベンカルブ","コメント_ベンゼン","ベンゼン","コメント_セレン","セレン","コメント_硝酸性窒素","硝酸性窒素","コメント_亜硝酸性窒素","亜硝酸性窒素","コメント_硝酸性窒素及び亜硝酸性窒素","硝酸性窒素及び亜硝酸性窒素","コメント_ふっ素","ふっ素","コメント_ほう素","ほう素","コメント_トリハロメタン生成能","トリハロメタン生成能","コメント_クロロホルム生成能","クロロホルム生成能","コメント_ブロモジクロロメタン生成能","ブロモジクロロメタン生成能","コメント_ジブロモクロロメタン生成能","ジブロモクロロメタン生成能","コメント_ブロモホルム生成能","ブロモホルム生成能","コメント_クロロホルム（要監視）","クロロホルム（要監視）","コメント_トランス-1,2-ジクロロエチレン","トランス-1,2-ジクロロエチレン","コメント_1,2-ジクロロプロパン","1,2-ジクロロプロパン","コメント_p-ジクロロベンゼン","p-ジクロロベンゼン","コメント_イソキサチオン","イソキサチオン","コメント_ダイアジノン","ダイアジノン","コメント_フェニトロチオン","フェニトロチオン","コメント_イソプロチオラン","イソプロチオラン","コメント_オキシン銅","オキシン銅","コメント_クロロタロニル","クロロタロニル","コメント_プロピザミド","プロピザミド","コメント_EPN","EPN","コメント_ジクロルボス","ジクロルボス","コメント_フェノブカルブ","フェノブカルブ","コメント_イプロベンホス","イプロベンホス","コメント_クロルニトロフェン","クロルニトロフェン","コメント_トルエン","トルエン","コメント_キシレン","キシレン","コメント_フタル酸ジエチルヘキシル","フタル酸ジエチルヘキシル","コメント_ニッケル","ニッケル","コメント_モリブデン","モリブデン","コメント_アンチモン","アンチモン","コメント_塩化ビニルモノマー","塩化ビニルモノマー","コメント_エピクロロヒドリン","エピクロロヒドリン","コメント_1,4-ジオキサン","1,4-ジオキサン","コメント_全マンガン","全マンガン","コメント_ウラン","ウラン","コメント_フェノール類","フェノール類","コメント_銅","銅","コメント_亜鉛","亜鉛","コメント_鉄_溶解性","鉄_溶解性","コメント_マンガン_溶解性","マンガン_溶解性","コメント_クロム","クロム","コメント_全亜鉛","全亜鉛","コメント_クロロホルム（水生生物保全）","クロロホルム（水生生物保全）","コメント_フェノール","フェノール","コメント_ホルムアルデヒド","ホルムアルデヒド","コメント_ノニルフェノール","ノニルフェノール","コメント_ノニルフェノール異性体No.01","ノニルフェノール異性体No.01","コメント_ノニルフェノール異性体No.02","ノニルフェノール異性体No.02","コメント_ノニルフェノール異性体No.03","ノニルフェノール異性体No.03","コメント_ノニルフェノール異性体No.04","ノニルフェノール異性体No.04","コメント_ノニルフェノール異性体No.05","ノニルフェノール異性体No.05","コメント_ノニルフェノール異性体No.06","ノニルフェノール異性体No.06","コメント_ノニルフェノール異性体No.07","ノニルフェノール異性体No.07","コメント_ノニルフェノール異性体No.08","ノニルフェノール異性体No.08","コメント_ノニルフェノール異性体No.09","ノニルフェノール異性体No.09","コメント_ノニルフェノール異性体No.10","ノニルフェノール異性体No.10","コメント_ノニルフェノール異性体No.11","ノニルフェノール異性体No.11","コメント_ノニルフェノール異性体No.12","ノニルフェノール異性体No.12","コメント_ノニルフェノール異性体No.13","ノニルフェノール異性体No.13","コメント_LAS","LAS","コメント_C10-LAS","C10-LAS","コメント_C11-LAS","C11-LAS","コメント_C12-LAS","C12-LAS","コメント_C13-LAS","C13-LAS","コメント_C14-LAS","C14-LAS","コメント_４-ｔ-オクチルフェノール","４-ｔ-オクチルフェノール","コメント_アニリン","アニリン","コメント_２，４-ジクロロフェノール","２，４-ジクロロフェノール","コメント_その他項目1","その他項目1","コメント_その他項目2","その他項目2","コメント_その他項目3","その他項目3","コメント_その他項目4","その他項目4","コメント_その他項目5","その他項目5","コメント_その他項目6","その他項目6","コメント_その他項目7","その他項目7","コメント_その他項目8","その他項目8","コメント_その他項目9","その他項目9","コメント_その他項目10","その他項目10","コメント_その他項目11","その他項目11","コメント_その他項目12","その他項目12","コメント_その他項目13","その他項目13","コメント_その他項目14","その他項目14","コメント_その他項目15","その他項目15","コメント_その他項目16","その他項目16","コメント_その他項目17","その他項目17","コメント_その他項目18","その他項目18","コメント_その他項目19","その他項目19","コメント_その他項目20","その他項目20","コメント_その他項目21","その他項目21","コメント_その他項目22","その他項目22","コメント_その他項目23","その他項目23","コメント_その他項目24","その他項目24","コメント_その他項目25","その他項目25","コメント_その他項目26","その他項目26","コメント_その他項目27","その他項目27","コメント_その他項目28","その他項目28","コメント_その他項目29","その他項目29","コメント_その他項目30","その他項目30","コメント_その他項目31","その他項目31","コメント_その他項目32","その他項目32","コメント_その他項目33","その他項目33","コメント_その他項目34","その他項目34","コメント_その他項目35","その他項目35","コメント_その他項目36","その他項目36","コメント_その他項目37","その他項目37","コメント_その他項目38","その他項目38","コメント_その他項目39","その他項目39","コメント_その他項目40","その他項目40","コメント_底層溶存酸素量","底層溶存酸素量","コメント_ペルフルオロオクタンスルホン酸（PFOS）","ペルフルオロオクタンスルホン酸（PFOS）","コメント_ペルフルオロオクタンスルホン酸（PFOS）（直鎖体）","ペルフルオロオクタンスルホン酸（PFOS）（直鎖体）","コメント_ペルフルオロオクタン酸（PFOA）","ペルフルオロオクタン酸（PFOA）","コメント_ペルフルオロオクタン酸（PFOA）（直鎖体）","ペルフルオロオクタン酸（PFOA）（直鎖体）","コメント_PFOS及びPFOAの合算値","PFOS及びPFOAの合算値","コメント_大腸菌数","大腸菌数"]
[2019,43,43,1,4311450,"水俣川上流","桜野橋",2019,411,1035,{"$f":"LEFT(I2,LEN(I2)-2)","v":"4"},{"$f":"RIGHT(\"“00\"&K2,2)","v":"04"},{"$f":"H2&\".\"&L2","v":"2019.04"},30,0,1,0.1,null,2,null,0,null,11,null,1,null,16,null,14,null,null,null,null,">",0.5,null,7.9,null,10,"<",0.5,null,2.4,null,2,null,null,null,null,null,null,null,null,null,null,null,null,null,null,null,null,null,null,null,null,null,null,null,null,null,null,null,null,null,null,null,null,null,null,null,null,null,null,null,null,null,null,null,null,null,null,null,null,null,null,null,null,null,null,null,null,null,null,null,null,null,null,null,null,null,null,null,null,null,null,null,null,null,null,null,null,null,null,null,null,null,null,null,null,null,null,null,null,null,null,null,null,null,null,null,null,null,null,null,null,null,null,null,null,null,null,null,null,null,null,null,null,null,null,null,null,null,null,null,null,null,null,null,null,null,null,null,null,null,null,null,null,null,null,null,null,null,null,null,null,null,null,null,5.0000000000000001E-3]
[2019,43,43,1,4311450,"水俣川上流","桜野橋",2019,514,1009,"5","05","2019.05",30,0,1,0.1,null,4,null,0,null,11,null,1,null,25,null,21,null,null,null,null,">",0.5,null,8.1999999999999993,null,8.6999999999999993,null,0.5,null,1.7,null,2,null,2400]
[2019,43,43,1,4311450,"水俣川上流","桜野橋",2019,611,1015,"6","06","2019.06",30,0,1,0.1,null,4,null,0,null,11,null,1,null,25,null,20.5,null,null,null,null,">",0.5,null,8,null,8.5,null,0.5,null,1.7,null,2]
[2019,43,43,1,4311450,"水俣川上流","桜野橋",2019,723,1015,"7","07","2019.07",30,0,1,0.1,null,4,null,0,null,11,null,1,null,29.5,null,22,null,null,null,null,">",0.5,null,7.5,null,9.1,null,0.8,null,2.1,null,3,null,1700,null,null,null,null,null,null,null,null,null,null,null,null,null,null,null,null,null,null,null,null,null,null,null,null,null,null,null,null,null,null,null,null,null,null,null,null,null,null,null,null,null,null,null,null,null,null,null,null,null,null,null,null,null,null,null,null,null,null,null,null,null,null,null,null,null,null,null,null,null,null,null,null,null,null,null,null,null,null,null,null,null,null,null,null,null,null,null,null,null,null,null,null,null,null,null,null,null,null,null,null,null,null,null,null,null,null,null,null,null,null,null,null,null,null,null,null,null,null,null,null,null,null,null,null,null,null,null,null,null,null,null,null,null,null,null,null,null,null,null,null,null,7.0000000000000001E-3]
[2019,43,43,1,4311450,"水俣川上流","桜野橋",2019,822,950,"8","08","2019.08",30,0,1,0.1,null,4,null,0,null,11,null,1,null,31,null,24,null,null,null,null,">",0.5,null,7.9,null,8,"<",0.5,null,1.7,null,2]
[2019,43,43,1,4311450,"水俣川上流","桜野橋",2019,903,958,"9","09","2019.09",30,0,1,0.1,null,2,null,0,null,11,null,1,null,28,null,23.5,null,null,null,null,">",0.5,null,7.8,null,8.9,"<",0.5,null,1.6,null,2,null,7000]
[2019,43,43,1,4311450,"水俣川上流","桜野橋",2019,1001,1000,"10","10","2019.10",30,0,1,0.1,null,4,null,0,null,11,null,1,null,30,null,23.5,null,null,null,null,">",0.5,null,8,null,8.3000000000000007,null,0.5,null,1.7,null,1,null,null,null,null,null,null,null,null,null,null,null,null,null,null,null,null,null,null,null,null,null,null,null,null,null,null,null,null,null,null,null,null,null,null,null,null,null,null,null,null,null,null,null,null,null,null,null,null,null,null,null,null,null,null,null,null,null,null,null,null,null,null,null,null,null,null,null,null,null,null,null,null,null,null,null,null,null,null,null,null,null,null,null,null,null,null,null,null,null,null,null,null,null,null,null,null,null,null,null,null,null,null,null,null,null,null,null,null,null,null,null,null,null,null,null,null,null,null,null,null,null,null,null,null,null,null,null,null,null,null,null,null,null,null,null,null,null,null,null,null,null,null,null,1.0999999999999999E-2]
[2019,43,43,1,4311450,"水俣川上流","桜野橋",2019,1120,1040,"11","11","2019.11",30,0,1,0.1,null,2,null,0,null,11,null,1,null,11,null,12,null,null,null,null,">",0.5,null,7.5,null,10,"<",0.5,null,1.5,null,1,null,1000,null,null,null,null,null,null,null,null,null,null,null,null,null,null,null,null,null,null,null,null,null,null,null,null,null,null,null,null,null,null,null,null,null,null,null,null,null,null,null,null,null,null,null,null,null,null,null,null,null,null,null,null,null,null,null,null,null,null,null,null,null,null,null,null,null,null,null,null,null,null,null,null,null,null,null,null,null,null,null,null,null,null,null,null,null,null,null,null,null,null,null,null,null,null,null,null,null,null,null,null,null,null,null,null,null,null,null,null,null,null,null,null,null,null,null,null,null,null,null,null,null,null,null,null,null,null,null,null,null,null,null,null,null,null,null,null,null,null,null,null,null,null,null,null,null,null,null,null,"<",6.0000000000000002E-5,"<",3.0000000000000001E-6,"<",5.0000000000000004E-6,"<",5.0000000000000004E-6,"<",3.0000000000000001E-6,"<",3.9999999999999998E-6,null,1.9999999999999999E-6,"<",3.0000000000000001E-6,null,1.9999999999999999E-6,null,7.9999999999999996E-6,"<",9.9999999999999995E-7,null,5.0000000000000004E-6,"<",1.9999999999999999E-6,null,3.0000000000000001E-6,"<",5.9999999999999995E-4,null,2.0000000000000002E-5,null,9.0000000000000006E-5,null,6.9999999999999994E-5,null,5.0000000000000002E-5,"<",5.0000000000000002E-5]
[2019,43,43,1,4311450,"水俣川上流","桜野橋",2019,1211,1008,"12","12","2019.12",30,0,1,0.1,null,4,null,0,null,11,null,1,null,13,null,11,null,null,null,null,">",0.5,null,7.5,null,10,"<",0.5,null,0.9,null,1]
[2019,43,43,1,4311450,"水俣川上流","桜野橋",2020,108,1018,"1","01","2020.01",30,0,1,0.1,null,4,null,0,null,11,null,20,null,13.8,null,13.2,null,null,null,null,">",0.5,null,7.8,null,10,"<",0.5,null,3.2,null,6,null,3300,null,null,null,null,null,null,null,null,null,null,null,null,null,null,null,null,null,null,null,null,null,null,null,null,null,null,null,null,null,null,null,null,null,null,null,null,null,null,null,null,null,null,null,null,null,null,null,null,null,null,null,null,null,null,null,null,null,null,null,null,null,null,null,null,null,null,null,null,null,null,null,null,null,null,null,null,null,null,null,null,null,null,null,null,null,null,null,null,null,null,null,null,null,null,null,null,null,null,null,null,null,null,null,null,null,null,null,null,null,null,null,null,null,null,null,null,null,null,null,null,null,null,null,null,null,null,null,null,null,null,null,null,null,null,null,null,null,null,null,null,null,5.0000000000000001E-3]
[2019,43,43,1,4311450,"水俣川上流","桜野橋",2020,219,1008,"2","02","2020.02",30,0,1,0.1,null,2,null,0,null,11,null,1,null,6.5,null,8.5,null,null,null,null,">",0.5,null,7.2,null,11,"<",0.5,null,1.2,null,1]
[2019,43,43,1,4311450,"水俣川上流","桜野橋",2020,310,1028,"3","03","2020.03",30,0,1,0.1,null,10,null,0,null,11,null,1,null,16.100000000000001,null,14,null,null,null,null,">",0.5,null,7.7,null,10,null,0.6,null,2.2999999999999998,null,4,null,3300]
[2020,43,43,1,4311450,"水俣川上流","桜野橋",2020,409,957,"4","04","2020.04",30,0,1,0.1,null,2,null,0,null,11,null,1,null,18,null,14,null,null,null,null,">",0.5,null,7.3,null,10,null,0.5,null,1.1000000000000001,null,2,null,null,null,null,null,null,null,null,null,null,null,null,null,null,null,null,null,null,null,null,null,null,null,null,null,null,null,null,null,null,null,null,null,null,null,null,null,null,null,null,null,null,null,null,null,null,null,null,null,null,null,null,null,null,null,null,null,null,null,null,null,null,null,null,null,null,null,null,null,null,null,null,null,null,null,null,null,null,null,null,null,null,null,null,null,null,null,null,null,null,null,null,null,null,null,null,null,null,null,null,null,null,null,null,null,null,null,null,null,null,null,null,null,null,null,null,null,null,null,null,null,null,null,null,null,null,null,null,null,null,null,null,null,null,null,null,null,null,null,null,null,null,null,5.0000000000000001E-3]
[2020,43,43,1,4311450,"水俣川上流","桜野橋",2020,609,1000,"6","06","2020.06",30,0,1,0.1,null,2,null,0,null,11,null,1,null,31,null,23.5,null,null,null,null,">",0.5,null,8.1,null,8.3000000000000007,"<",0.5,null,1.7,null,1]
[2020,43,43,1,4311450,"水俣川上流","桜野橋",2020,805,1005,"8","08","2020.08",30,0,1,0.1,null,2,null,0,null,11,null,1,null,33,null,26,null,null,null,null,">",0.5,null,8.4,null,8.6999999999999993,null,0.6,null,1.7,null,1]
[2020,43,43,1,4311450,"水俣川上流","桜野橋",2020,923,1011,"9","09","2020.09",30,0,1,0.1,null,4,null,0,null,11,null,1,null,27,null,21,null,null,null,null,">",0.5,null,8,null,9.1,"<",0.5,null,1.1000000000000001,"<",1,null,4900]
[2020,43,43,1,4311450,"水俣川上流","桜野橋",2020,1007,1020,"10","10","2020.10",30,0,1,0.1,null,2,null,0,null,11,null,1,null,21,null,18,null,null,null,null,">",0.5,null,8,null,10,"<",0.5,null,0.9,null,1,null,null,null,null,null,null,null,null,null,null,null,null,null,null,null,null,null,null,null,null,null,null,null,null,null,null,null,null,null,null,null,null,null,null,null,null,null,null,null,null,null,null,null,null,null,null,null,null,null,null,null,null,null,null,null,null,null,null,null,null,null,null,null,null,null,null,null,null,null,null,null,null,null,null,null,null,null,null,null,null,null,null,null,null,null,null,null,null,null,null,null,null,null,null,null,null,null,null,null,null,null,null,null,null,null,null,null,null,null,null,null,null,null,null,null,null,null,null,null,null,null,null,null,null,null,null,null,null,null,null,null,null,null,null,null,null,null,null,null,null,null,null,null,5.0000000000000001E-3,null,null,null,null,null,null,"<",6.0000000000000002E-5,"<",3.0000000000000001E-6,"<",5.0000000000000004E-6,"<",5.0000000000000004E-6,"<",3.0000000000000001E-6,"<",3.9999999999999998E-6,"<",1.9999999999999999E-6,"<",3.0000000000000001E-6,"<",1.9999999999999999E-6,"<",3.0000000000000001E-6,"<",9.9999999999999995E-7,"<",3.9999999999999998E-6,"<",1.9999999999999999E-6,"<",3.0000000000000001E-6,null,5.9999999999999995E-4,null,6.9999999999999994E-5,null,2.5000000000000001E-4,null,1.7000000000000001E-4,null,1.2999999999999999E-4,"<",5.0000000000000002E-5]
[2020,43,43,1,4311450,"水俣川上流","桜野橋",2020,1111,1005,"11","11","2020.11",30,0,1,0.1,null,2,null,0,null,11,null,1,null,14,null,12.5,null,null,null,null,">",0.5,null,7.9,null,11,"<",0.5,null,0.6,"<",1,null,310]
[2020,43,43,1,4311450,"水俣川上流","桜野橋",2020,1202,957,"12","12","2020.12",30,0,1,0.1,null,2,null,0,null,11,null,1,null,11.5,null,11,null,null,null,null,">",0.5,null,8,null,12,"<",0.5,null,0.8,null,1]
[2020,43,43,1,4311450,"水俣川上流","桜野橋",2021,112,1000,"1","01","2021.01",30,0,1,0.1,null,4,null,0,null,11,null,1,null,6,null,7.5,null,null,null,null,">",0.5,null,8,null,12,"<",0.5,"<",0.5,null,1,null,490,null,null,null,null,null,null,null,null,null,null,null,null,null,null,null,null,null,null,null,null,null,null,null,null,null,null,null,null,null,null,null,null,null,null,null,null,null,null,null,null,null,null,null,null,null,null,null,null,null,null,null,null,null,null,null,null,null,null,null,null,null,null,null,null,null,null,null,null,null,null,null,null,null,null,null,null,null,null,null,null,null,null,null,null,null,null,null,null,null,null,null,null,null,null,null,null,null,null,null,null,null,null,null,null,null,null,null,null,null,null,null,null,null,null,null,null,null,null,null,null,null,null,null,null,null,null,null,null,null,null,null,null,null,null,null,null,null,null,null,null,null,3.0000000000000001E-3]
[2020,43,43,1,4311450,"水俣川上流","桜野橋",2021,209,958,"2","02","2021.02",30,0,1,0.1,null,2,null,0,null,11,null,1,null,10,null,8.5,null,null,null,null,">",0.5,null,7.8,null,12,"<",0.5,null,1.3,null,4]
[2020,43,43,1,4311450,"水俣川上流","桜野橋",2021,302,1005,"3","03","2021.03",30,0,1,0.1,null,10,null,0,null,11,null,20,null,11,null,13.5,null,null,null,null,null,0.41,null,7.7,null,9.8000000000000007,"<",0.5,null,4.5,null,18,null,4900]
[2021,43,43,1,4311450,"水俣川上流","桜野橋",2021,414,947,"4","04","2021.04",30,0,1,0.1,null,2,null,0,null,11,null,1,null,15.5,null,15.5,null,null,null,null,">",0.5,null,8.1999999999999993,null,9.6999999999999993,"<",0.5,null,1.6,"<",1]
[2021,43,43,1,4311450,"水俣川上流","桜野橋",2021,519,930,"5","05","2021.05",30,0,1,0.1,null,4,null,0,null,11,null,1,null,21,null,16.5,null,null,null,null,">",0.5,null,7.4,null,9,"<",0.5,null,1.7,null,3,null,4900,null,null,null,null,null,null,null,null,null,null,null,null,null,null,null,null,null,null,null,null,null,null,null,null,null,null,null,null,null,null,null,null,null,null,null,null,null,null,null,null,null,null,null,null,null,null,null,null,null,null,null,null,null,null,null,null,null,null,null,null,null,null,null,null,null,null,null,null,null,null,null,null,null,null,null,null,null,null,null,null,null,null,null,null,null,null,null,null,null,null,null,null,null,null,null,null,null,null,null,null,null,null,null,null,null,null,null,null,null,null,null,null,null,null,null,null,null,null,null,null,null,null,null,null,null,null,null,null,null,null,null,null,null,null,null,null,null,null,null,null,null,4.0000000000000001E-3]
[2021,43,43,1,4311450,"水俣川上流","桜野橋",2021,610,917,"6","06","2021.06",30,0,1,0.1,null,2,null,0,null,11,null,1,null,30.3,null,21.9,null,null,null,null,">",0.5,null,8.5,null,8.6999999999999993,"<",0.5,null,1.4,null,1]
[2021,43,43,1,4311450,"水俣川上流","桜野橋",2021,714,915,"7","07","2021.07",30,0,1,0.1,null,2,null,0,null,11,null,1,null,29,null,22.6,null,null,null,null,">",0.5,null,7.8,null,8,null,0.5,null,1.4,null,3,null,3400]
[2021,43,43,1,4311450,"水俣川上流","桜野橋",2021,826,934,"8","08","2021.08",30,0,1,0.1,null,2,null,0,null,11,null,1,null,29.2,null,23.9,null,null,null,null,">",0.5,null,8.3000000000000007,null,8.1999999999999993,"<",0.5,null,1,null,1,null,null,null,null,null,null,null,null,null,null,null,null,null,null,null,null,null,null,null,null,null,null,null,null,null,null,null,null,null,null,null,null,null,null,null,null,null,null,null,null,null,null,null,null,null,null,null,null,null,null,null,null,null,null,null,null,null,null,null,null,null,null,null,null,null,null,null,null,null,null,null,null,null,null,null,null,null,null,null,null,null,null,null,null,null,null,null,null,null,null,null,null,null,null,null,null,null,null,null,null,null,null,null,null,null,null,null,null,null,null,null,null,null,null,null,null,null,null,null,null,null,null,null,null,null,null,null,null,null,null,null,null,null,null,null,null,null,null,null,null,null,null,null,2E-3]
[2021,43,43,1,4311450,"水俣川上流","桜野橋",2021,908,935,"9","09","2021.09",30,0,1,0.1,null,4,null,0,null,11,null,1,null,25.8,null,24.5,null,null,null,null,">",0.5,null,8.1999999999999993,null,8.9,"<",0.5,null,1.5,null,1,null,7900]
[2021,43,43,1,4311450,"水俣川上流","桜野橋",2021,1012,939,"10","10","2021.10",30,0,1,0.1,null,2,null,0,null,11,null,1,null,26.1,null,23,null,null,null,null,">",0.5,null,8,null,8.1,null,0.6,null,1.5,"<",1]
[2021,43,43,1,4311450,"水俣川上流","桜野橋",2021,1109,930,"11","11","2021.11",30,0,1,0.1,null,4,null,0,null,11,null,1,null,13,null,15.3,null,null,null,null,">",0.5,null,8.1,null,9.8000000000000007,null,0.5,null,1.8,null,2,null,2200,null,null,null,null,null,null,null,null,null,null,null,null,null,null,null,null,null,null,null,null,null,null,null,null,null,null,null,null,null,null,null,null,null,null,null,null,null,null,null,null,null,null,null,null,null,null,null,null,null,null,null,null,null,null,null,null,null,null,null,null,null,null,null,null,null,null,null,null,null,null,null,null,null,null,null,null,null,null,null,null,null,null,null,null,null,null,null,null,null,null,null,null,null,null,null,null,null,null,null,null,null,null,null,null,null,null,null,null,null,null,null,null,null,null,null,null,null,null,null,null,null,null,null,null,null,null,null,null,null,null,null,null,null,null,null,null,null,null,null,null,null,2E-3,null,null,null,null,null,null,"<",6.0000000000000002E-5,"<",3.0000000000000001E-6,"<",5.0000000000000004E-6,"<",5.0000000000000004E-6,"<",3.0000000000000001E-6,"<",3.9999999999999998E-6,null,1.9999999999999999E-6,"<",3.0000000000000001E-6,"<",1.9999999999999999E-6,"<",3.0000000000000001E-6,null,9.9999999999999995E-7,"<",3.9999999999999998E-6,"<",1.9999999999999999E-6,"<",3.0000000000000001E-6,"<",5.9999999999999995E-4,null,2.0000000000000002E-5,"<",3.0000000000000001E-5,"<",4.0000000000000003E-5,"<",5.0000000000000002E-5,"<",5.0000000000000002E-5]
[2021,43,43,1,4311450,"水俣川上流","桜野橋",2021,1202,932,"12","12","2021.12",30,0,1,0.1,null,2,null,0,null,11,null,1,null,11,null,10.4,null,null,null,null,">",0.5,null,8,null,10,null,0.8,null,1.3,null,2]
[2021,43,43,1,4311450,"水俣川上流","桜野橋",2022,112,940,"1","01","2022.01",30,0,1,0.1,null,2,null,0,null,11,null,1,null,3.5,null,6.6,null,null,null,null,">",0.5,null,7.6,null,12,null,0.7,null,1.2,"<",1,null,330,null,null,null,null,null,null,null,null,null,null,null,null,null,null,null,null,null,null,null,null,null,null,null,null,null,null,null,null,null,null,null,null,null,null,null,null,null,null,null,null,null,null,null,null,null,null,null,null,null,null,null,null,null,null,null,null,null,null,null,null,null,null,null,null,null,null,null,null,null,null,null,null,null,null,null,null,null,null,null,null,null,null,null,null,null,null,null,null,null,null,null,null,null,null,null,null,null,null,null,null,null,null,null,null,null,null,null,null,null,null,null,null,null,null,null,null,null,null,null,null,null,null,null,null,null,null,null,null,null,null,null,null,null,null,null,null,null,null,null,null,null,1E-3]
[2021,43,43,1,4311450,"水俣川上流","桜野橋",2022,215,938,{"$f":"LEFT(I34,LEN(I34)-2)","v":"2"},{"$f":"RIGHT(\"“00\"&K34,2)","v":"02"},{"$f":"H34&\".\"&L34","v":"2022.02"},30,0,1,0.1,null,4,null,0,null,11,null,1,null,6,null,9.4,null,null,null,null,">",0.5,null,7.8,null,11,null,0.7,null,1,null,3]
[2021,43,43,1,4311450,"水俣川上流","桜野橋",2022,302,1015,"3","03","2022.03",30,0,1,0.1,null,2,null,0,null,11,null,1,null,11,null,11.6,null,null,null,null,">",0.5,null,7.9,null,10,null,0.8,null,1.8,null,5,null,1000]
[2022,43,43,1,4311450,"水俣川上流","桜野橋",2022,419,944,"4","04","2022.04",30,0,1,0.1,null,2,null,0,null,11,null,1,null,18.5,null,16.399999999999999,null,null,null,null,">",0.5,null,8.2530000000000001,null,10,null,0.5,null,1.2,null,1,null,null,null,null,null,null,null,null,null,null,null,null,null,null,null,null,null,null,null,null,null,null,null,null,null,null,null,null,null,null,null,null,null,null,null,null,null,null,null,null,null,null,null,null,null,null,null,null,null,null,null,null,null,null,null,null,null,null,null,null,null,null,null,null,null,null,null,null,null,null,null,null,null,null,null,null,null,null,null,null,null,null,null,null,null,null,null,null,null,null,null,null,null,null,null,null,null,null,null,null,null,null,null,null,null,null,null,null,null,null,null,null,null,null,null,null,null,null,null,null,null,null,null,null,null,null,null,null,null,null,null,null,null,null,null,null,null,null,null,null,null,null,null,2E-3]
[2022,43,43,1,4311450,"水俣川上流","桜野橋",2022,517,953,"5","05","2022.05",30,0,1,0.1,null,2,null,0,null,11,null,1,null,18.2,null,17,null,null,null,null,">",0.5,null,8.1,null,11,null,0.5,null,1.4,null,2,null,null,null,null,null,null,null,null,null,null,null,null,null,null,null,null,null,null,null,null,null,null,null,null,null,null,null,null,null,null,null,null,null,null,null,null,null,null,null,null,null,null,null,null,null,null,null,null,null,null,null,null,null,null,null,null,null,null,null,null,null,null,null,null,null,null,null,null,null,null,null,null,null,null,null,null,null,null,null,null,null,null,null,null,null,null,null,null,null,null,null,null,null,null,null,null,null,null,null,null,null,null,null,null,null,null,null,null,null,null,null,null,null,null,null,null,null,null,null,null,null,null,null,null,null,null,null,null,null,null,null,null,null,null,null,null,null,null,null,null,null,null,null,null,null,null,null,null,null,null,null,null,null,null,null,null,null,null,null,null,null,null,null,null,null,null,null,null,null,null,null,null,null,null,null,null,null,null,null,null,null,null,null,null,null,null,null,null,null,null,null,null,null,null,null,null,null,null,null,null,null,null,null,null,null,null,null,null,null,null,null,null,null,null,null,null,null,null,null,null,null,null,null,null,null,null,null,null,null,null,null,null,null,null,null,null,null,null,null,null,null,null,null,null,null,null,null,null,null,null,null,null,null,null,null,null,null,null,null,null,null,null,null,null,null,null,null,null,null,null,null,null,null,null,null,null,null,null,null,null,null,null,null,null,null,null,null,null,null,130]
[2022,43,43,1,4311450,"水俣川上流","桜野橋",2022,607,1000,"6","06","2022.06",30,0,1,0.1,null,2,null,0,null,11,null,1,null,23.5,null,19.100000000000001,null,null,null,null,">",0.5,null,7.8,null,9.3000000000000007,"<",0.5,null,1.4,null,3]
[2022,43,43,1,4311450,"水俣川上流","桜野橋",2022,713,930,"7","07","2022.07",30,0,1,0.1,null,2,null,0,null,11,null,1,null,29.1,null,23,null,null,null,null,">",0.5,null,7.9,null,8.4,"<",0.5,null,1.2,null,2,null,null,null,null,null,null,null,null,null,null,null,null,null,null,null,null,null,null,null,null,null,null,null,null,null,null,null,null,null,null,null,null,null,null,null,null,null,null,null,null,null,null,null,null,null,null,null,null,null,null,null,null,null,null,null,null,null,null,null,null,null,null,null,null,null,null,null,null,null,null,null,null,null,null,null,null,null,null,null,null,null,null,null,null,null,null,null,null,null,null,null,null,null,null,null,null,null,null,null,null,null,null,null,null,null,null,null,null,null,null,null,null,null,null,null,null,null,null,null,null,null,null,null,null,null,null,null,null,null,null,null,null,null,null,null,null,null,null,null,null,null,null,null,null,null,null,null,null,null,null,null,null,null,null,null,null,null,null,null,null,null,null,null,null,null,null,null,null,null,null,null,null,null,null,null,null,null,null,null,null,null,null,null,null,null,null,null,null,null,null,null,null,null,null,null,null,null,null,null,null,null,null,null,null,null,null,null,null,null,null,null,null,null,null,null,null,null,null,null,null,null,null,null,null,null,null,null,null,null,null,null,null,null,null,null,null,null,null,null,null,null,null,null,null,null,null,null,null,null,null,null,null,null,null,null,null,null,null,null,null,null,null,null,null,null,null,null,null,null,null,null,null,null,null,null,null,null,null,null,null,null,null,null,null,null,null,null,null,null,150]
[2022,43,43,1,4311450,"水俣川上流","桜野橋",2022,824,940,"8","08","2022.08",30,0,1,0.1,null,2,null,0,null,11,null,1,null,29.8,null,24.3,null,null,null,null,">",0.5,null,7.7,null,8.1,null,0.5,null,1.3,null,2]
[2022,43,43,1,4311450,"水俣川上流","桜野橋",2022,914,932,"9","09","2022.09",30,0,1,0.1,null,2,null,0,null,11,null,1,null,31.1,null,24.6,null,null,null,null,">",0.5,null,8.1,null,8.6999999999999993,"<",0.5,null,1.2,"<",1,null,null,null,null,null,null,null,null,null,null,null,null,null,null,null,null,null,null,null,null,null,null,null,null,null,null,null,null,null,null,null,null,null,null,null,null,null,null,null,null,null,null,null,null,null,null,null,null,null,null,null,null,null,null,null,null,null,null,null,null,null,null,null,null,null,null,null,null,null,null,null,null,null,null,null,null,null,null,null,null,null,null,null,null,null,null,null,null,null,null,null,null,null,null,null,null,null,null,null,null,null,null,null,null,null,null,null,null,null,null,null,null,null,null,null,null,null,null,null,null,null,null,null,null,null,null,null,null,null,null,null,null,null,null,null,null,null,null,null,null,null,null,null,null,null,null,null,null,null,null,null,null,null,null,null,null,null,null,null,null,null,null,null,null,null,null,null,null,null,null,null,null,null,null,null,null,null,null,null,null,null,null,null,null,null,null,null,null,null,null,null,null,null,null,null,null,null,null,null,null,null,null,null,null,null,null,null,null,null,null,null,null,null,null,null,null,null,null,null,null,null,null,null,null,null,null,null,null,null,null,null,null,null,null,null,null,null,null,null,null,null,null,null,null,null,null,null,null,null,null,null,null,null,null,null,null,null,null,null,null,null,null,null,null,null,null,null,null,null,null,null,null,null,null,null,null,null,null,null,null,null,null,null,null,null,null,null,null,null,170]
[2022,43,43,1,4311450,"水俣川上流","桜野橋",2022,1013,930,"10","10","2022.10",30,0,1,0.1,null,2,null,0,null,11,null,1,null,19.399999999999999,null,17.600000000000001,null,null,null,null,">",0.5,null,7.5,null,9.5,null,0.6,null,0.9,null,1,null,null,null,null,null,null,null,null,null,null,null,null,null,null,null,null,null,null,null,null,null,null,null,null,null,null,null,null,null,null,null,null,null,null,null,null,null,null,null,null,null,null,null,null,null,null,null,null,null,null,null,null,null,null,null,null,null,null,null,null,null,null,null,null,null,null,null,null,null,null,null,null,null,null,null,null,null,null,null,null,null,null,null,null,null,null,null,null,null,null,null,null,null,null,null,null,null,null,null,null,null,null,null,null,null,null,null,null,null,null,null,null,null,null,null,null,null,null,null,null,null,null,null,null,null,null,null,null,null,null,null,null,null,null,null,null,null,null,null,null,null,null,null,1E-3,null,null,null,null,null,null,"<",6.0000000000000002E-5,"<",3.0000000000000001E-6,"<",5.0000000000000004E-6,"<",5.0000000000000004E-6,"<",3.0000000000000001E-6,"<",3.9999999999999998E-6,"<",1.9999999999999999E-6,"<",3.0000000000000001E-6,"<",1.9999999999999999E-6,"<",3.0000000000000001E-6,"<",9.9999999999999995E-7,"<",3.9999999999999998E-6,"<",1.9999999999999999E-6,"<",3.0000000000000001E-6,"<",5.9999999999999995E-4,"<",1.0000000000000001E-5,"<",3.0000000000000001E-5,"<",4.0000000000000003E-5,"<",5.0000000000000002E-5,"<",5.0000000000000002E-5]
[2022,43,43,1,4311450,"水俣川上流","桜野橋",2022,1116,940,"11","11","2022.11",30,0,1,0.1,null,2,null,0,null,11,null,1,null,13.5,null,13.8,null,null,null,null,">",0.5,null,8.1999999999999993,null,9.8000000000000007,"<",0.5,null,1.3,null,1,null,null,null,null,null,null,null,null,null,null,null,null,null,null,null,null,null,null,null,null,null,null,null,null,null,null,null,null,null,null,null,null,null,null,null,null,null,null,null,null,null,null,null,null,null,null,null,null,null,null,null,null,null,null,null,null,null,null,null,null,null,null,null,null,null,null,null,null,null,null,null,null,null,null,null,null,null,null,null,null,null,null,null,null,null,null,null,null,null,null,null,null,null,null,null,null,null,null,null,null,null,null,null,null,null,null,null,null,null,null,null,null,null,null,null,null,null,null,null,null,null,null,null,null,null,null,null,null,null,null,null,null,null,null,null,null,null,null,null,null,null,null,null,null,null,null,null,null,null,null,null,null,null,null,null,null,null,null,null,null,null,null,null,null,null,null,null,null,null,null,null,null,null,null,null,null,null,null,null,null,null,null,null,null,null,null,null,null,null,null,null,null,null,null,null,null,null,null,null,null,null,null,null,null,null,null,null,null,null,null,null,null,null,null,null,null,null,null,null,null,null,null,null,null,null,null,null,null,null,null,null,null,null,null,null,null,null,null,null,null,null,null,null,null,null,null,null,null,null,null,null,null,null,null,null,null,null,null,null,null,null,null,null,null,null,null,null,null,null,null,null,null,null,null,null,null,null,null,null,null,null,null,null,null,null,null,null,null,null,470]
[2022,43,43,1,4311450,"水俣川上流","桜野橋",2022,1213,1358,"12","12","2022.12",30,0,1,0.1,null,4,null,0,null,11,null,1,null,12.3,null,13.2,null,null,null,null,">",0.5,null,8.1999999999999993,null,10,null,0.6,null,1.2,null,3,null,null,null,null,null,null,null,null,null,null,null,null,null,null,null,null,null,null,null,null,null,null,null,null,null,null,null,null,null,null,null,null,null,null,null,null,null,null,null,null,null,null,null,null,null,null,null,null,null,null,null,null,null,null,null,null,null,null,null,null,null,null,null,null,null,null,null,null,null,null,null,null,null,null,null,null,null,null,null,null,null,null,null,null,null,null,null,null,null,null,null,null,null,null,null,null,null,null,null,null,null,null,null,null,null,null,null,null,null,null,null,null,null,null,null,null,null,null,null,null,null,null,null,null,null,null,null,null,null,null,null,null,null,null,null,null,null,null,null,null,null,null,null,4.0000000000000001E-3]
[2022,43,43,1,4311450,"水俣川上流","桜野橋",2023,119,942,"1","01","2023.01",30,0,1,0.1,null,4,null,0,null,11,null,1,null,6,null,9.4,null,null,null,null,">",0.5,null,8,null,11,null,1.2,null,0.8,null,1,null,null,null,null,null,null,null,null,null,null,null,null,null,null,null,null,null,null,null,null,null,null,null,null,null,null,null,null,null,null,null,null,null,null,null,null,null,null,null,null,null,null,null,null,null,null,null,null,null,null,null,null,null,null,null,null,null,null,null,null,null,null,null,null,null,null,null,null,null,null,null,null,null,null,null,null,null,null,null,null,null,null,null,null,null,null,null,null,null,null,null,null,null,null,null,null,null,null,null,null,null,null,null,null,null,null,null,null,null,null,null,null,null,null,null,null,null,null,null,null,null,null,null,null,null,null,null,null,null,null,null,null,null,null,null,null,null,null,null,null,null,null,null,3.0000000000000001E-3,null,null,null,null,null,null,null,null,null,null,null,null,null,null,null,null,null,null,null,null,null,null,null,null,null,null,null,null,null,null,null,null,null,null,null,null,null,null,null,null,null,null,null,null,null,null,null,null,null,null,null,null,null,null,null,null,null,null,null,null,null,null,null,null,null,null,null,null,null,null,null,null,null,null,null,null,null,null,null,null,null,null,null,null,null,null,null,null,null,null,null,null,null,null,null,null,null,null,null,null,null,null,null,null,null,null,null,null,null,null,null,null,null,null,null,null,null,null,null,null,null,null,null,null,null,null,null,null,null,null,null,null,null,null,null,null,null,null,null,null,null,null,null,null,null,140]
[2022,43,43,1,4311450,"水俣川上流","桜野橋",2023,208,940,"2","02","2023.02",30,0,1,0.1,null,2,null,0,null,11,null,1,null,10.1,null,11.3,null,null,null,null,">",0.5,null,7.8,null,10,null,1.1000000000000001,null,1.7,null,3]
[2022,43,43,1,4311450,"水俣川上流","桜野橋",2023,307,935,"3","03","2023.03",30,0,1,0.1,null,2,null,0,null,11,null,1,null,11.8,null,11,null,null,null,null,">",0.5,null,8.1999999999999993,null,11,"<",0.5,null,0.9,null,1,null,null,null,null,null,null,null,null,null,null,null,null,null,null,null,null,null,null,null,null,null,null,null,null,null,null,null,null,null,null,null,null,null,null,null,null,null,null,null,null,null,null,null,null,null,null,null,null,null,null,null,null,null,null,null,null,null,null,null,null,null,null,null,null,null,null,null,null,null,null,null,null,null,null,null,null,null,null,null,null,null,null,null,null,null,null,null,null,null,null,null,null,null,null,null,null,null,null,null,null,null,null,null,null,null,null,null,null,null,null,null,null,null,null,null,null,null,null,null,null,null,null,null,null,null,null,null,null,null,null,null,null,null,null,null,null,null,null,null,null,null,null,null,null,null,null,null,null,null,null,null,null,null,null,null,null,null,null,null,null,null,null,null,null,null,null,null,null,null,null,null,null,null,null,null,null,null,null,null,null,null,null,null,null,null,null,null,null,null,null,null,null,null,null,null,null,null,null,null,null,null,null,null,null,null,null,null,null,null,null,null,null,null,null,null,null,null,null,null,null,null,null,null,null,null,null,null,null,null,null,null,null,null,null,null,null,null,null,null,null,null,null,null,null,null,null,null,null,null,null,null,null,null,null,null,null,null,null,null,null,null,null,null,null,null,null,null,null,null,null,null,null,null,null,null,null,null,null,null,null,null,null,null,null,null,null,null,null,null,14]
[2023,43,43,1,4311450,"水俣川上流","桜野橋",2023,419,949,"4","04","2023.04",30,0,1,0.1,null,4,null,0,null,11,null,1,null,25,null,18.100000000000001,null,null,null,null,">",0.5,null,7.5,null,9.5,"<",0.5,null,0.9,"<",1,null,null,null,null,null,null,null,null,null,null,null,null,null,null,null,null,null,null,null,null,null,null,null,null,null,null,null,null,null,null,null,null,null,null,null,null,null,null,null,null,null,null,null,null,null,null,null,null,null,null,null,null,null,null,null,null,null,null,null,null,null,null,null,null,null,null,null,null,null,null,null,null,null,null,null,null,null,null,null,null,null,null,null,null,null,null,null,null,null,null,null,null,null,null,null,null,null,null,null,null,null,null,null,null,null,null,null,null,null,null,null,null,null,null,null,null,null,null,null,null,null,null,null,null,null,null,null,null,null,null,null,null,null,null,null,null,null,null,null,null,null,null,null,2E-3]
[2023,43,43,1,4311450,"水俣川上流","桜野橋",2023,517,955,"5","05","2023.05",30,0,1,0.1,null,2,null,0,null,11,null,1,null,25.8,null,19.3,null,null,null,null,">",0.5,null,8.1999999999999993,null,9.6999999999999993,"<",0.5,null,1.5,null,2,null,null,null,null,null,null,null,null,null,null,null,null,null,null,null,null,null,null,null,null,null,null,null,null,null,null,null,null,null,null,null,null,null,null,null,null,null,null,null,null,null,null,null,null,null,null,null,null,null,null,null,null,null,null,null,null,null,null,null,null,null,null,null,null,null,null,null,null,null,null,null,null,null,null,null,null,null,null,null,null,null,null,null,null,null,null,null,null,null,null,null,null,null,null,null,null,null,null,null,null,null,null,null,null,null,null,null,null,null,null,null,null,null,null,null,null,null,null,null,null,null,null,null,null,null,null,null,null,null,null,null,null,null,null,null,null,null,null,null,null,null,null,null,null,null,null,null,null,null,null,null,null,null,null,null,null,null,null,null,null,null,null,null,null,null,null,null,null,null,null,null,null,null,null,null,null,null,null,null,null,null,null,null,null,null,null,null,null,null,null,null,null,null,null,null,null,null,null,null,null,null,null,null,null,null,null,null,null,null,null,null,null,null,null,null,null,null,null,null,null,null,null,null,null,null,null,null,null,null,null,null,null,null,null,null,null,null,null,null,null,null,null,null,null,null,null,null,null,null,null,null,null,null,null,null,null,null,null,null,null,null,null,null,null,null,null,null,null,null,null,null,null,null,null,null,null,null,null,null,null,null,null,null,null,null,null,null,null,null,120]
[2023,43,43,1,4311450,"水俣川上流","桜野橋",2023,614,910,"6","06","2023.06",30,0,1,0.1,null,4,null,0,null,11,null,1,null,24.8,null,19.7,null,null,null,null,">",0.5,null,7.6,null,8.8000000000000007,"<",0.5,null,1.3,null,1]
[2023,43,43,1,4311450,"水俣川上流","桜野橋",2023,713,830,"7","07","2023.07",30,0,1,0.1,null,4,null,0,null,11,null,1,null,29,null,23,null,null,null,null,">",0.5,null,8.1,null,8.1999999999999993,"<",0.5,null,1.5,null,2,null,null,null,null,null,null,null,null,"<",2.9999999999999997E-4,null,null,"<",5.0000000000000001E-3,null,null,"<",1E-3,null,null,null,null,null,null,null,null,null,null,null,null,null,null,null,null,null,null,null,null,null,null,null,null,null,null,null,null,null,null,null,null,null,null,null,null,"<",2E-3,null,null,null,null,null,null,null,null,null,null,null,null,null,null,null,null,null,null,null,null,null,null,null,null,null,null,null,null,null,null,null,null,null,null,null,null,null,null,null,null,null,null,null,null,null,null,null,null,null,null,null,null,null,null,null,null,null,null,null,null,null,null,null,null,null,null,null,null,null,null,null,null,null,null,null,null,null,null,null,null,null,null,null,null,"<",0.02,null,1E-3,null,null,null,null,null,null,null,null,null,null,null,null,null,null,null,null,null,null,null,null,null,null,null,null,null,null,null,null,null,null,null,null,null,null,null,null,null,null,null,null,null,null,null,null,null,null,null,null,null,null,null,null,null,null,null,null,null,null,null,null,null,null,null,null,null,null,null,null,null,null,null,null,null,null,null,null,null,null,null,null,null,null,null,null,null,null,null,null,null,null,null,null,null,null,null,null,null,null,null,null,null,null,null,null,null,null,null,null,null,null,null,null,null,null,null,null,null,null,null,null,null,null,null,null,null,null,null,null,null,null,null,null,null,null,null,null,null,null,null,null,null,null,null,null,null,150]
[2023,43,43,1,4311450,"水俣川上流","桜野橋",2023,808,850,"8","08","2023.08",30,0,1,0.1,null,2,null,0,null,11,null,1,null,27.3,null,26,null,null,null,null,">",0.5,null,8.1,null,7.4,null,0.6,null,1.9,null,3]
[2023,43,43,1,4311450,"水俣川上流","桜野橋",2023,907,1110,"9","09","2023.09",30,0,1,0.1,null,2,null,0,null,11,null,1,null,29.4,null,25.5,null,null,null,null,">",0.5,null,8.1999999999999993,null,8.3000000000000007,"<",0.5,null,1.4,null,2,null,null,null,null,null,null,null,null,null,null,null,null,null,null,null,null,null,null,null,null,null,null,null,null,null,null,null,null,null,null,null,null,null,null,null,null,null,null,null,null,null,null,null,null,null,null,null,null,null,null,null,null,null,null,null,null,null,null,null,null,null,null,null,null,null,null,null,null,null,null,null,null,null,null,null,null,null,null,null,null,null,null,null,null,null,null,null,null,null,null,null,null,null,null,null,null,null,null,null,null,null,null,null,null,null,null,null,null,null,null,null,null,null,null,null,null,null,null,null,null,null,null,null,null,null,null,null,null,null,null,null,null,null,null,null,null,null,null,null,null,null,null,null,null,null,null,null,null,null,null,null,null,null,null,null,null,null,null,null,null,null,null,null,null,null,null,null,null,null,null,null,null,null,null,null,null,null,null,null,null,null,null,null,null,null,null,null,null,null,null,null,null,null,null,null,null,null,null,null,null,null,null,null,null,null,null,null,null,null,null,null,null,null,null,null,null,null,null,null,null,null,null,null,null,null,null,null,null,null,null,null,null,null,null,null,null,null,null,null,null,null,null,null,null,null,null,null,null,null,null,null,null,null,null,null,null,null,null,null,null,null,null,null,null,null,null,null,null,null,null,null,null,null,null,null,null,null,null,null,null,null,null,null,null,null,null,null,null,null,76]
[2023,43,43,1,4311450,"水俣川上流","桜野橋",2023,1010,935,"10","10","2023.10",30,0,1,0.1,null,2,null,0,null,11,null,1,null,24,null,20.5,null,null,null,null,">",0.5,null,7.8,null,8.6999999999999993,null,0.5,null,1.4,null,1,null,null,null,null,null,null,null,null,null,null,null,null,null,null,null,null,null,null,null,null,null,null,null,null,null,null,null,null,null,null,null,null,null,null,null,null,null,null,null,null,null,null,null,null,null,null,null,null,null,null,null,null,null,null,null,null,null,null,null,null,null,null,null,null,null,null,null,null,null,null,null,null,null,null,null,null,null,null,null,null,null,null,null,null,null,null,null,null,null,null,null,null,null,null,null,null,null,null,null,null,null,null,null,null,null,null,null,null,null,null,null,null,null,null,null,null,null,null,null,null,null,null,null,null,null,null,null,null,null,null,null,null,null,null,null,null,null,null,null,null,null,null,"<",1E-3]
[2023,43,43,1,4311450,"水俣川上流","桜野橋",2023,1107,1150,"11","11","2023.11",30,0,1,0.1,null,2,null,0,null,11,null,1,null,19.2,null,18.399999999999999,null,null,null,null,">",0.5,null,8.1,null,9.6,null,0.5,null,4,null,3,null,null,null,null,null,null,null,null,null,null,null,null,null,null,null,null,null,null,null,null,null,null,null,null,null,null,null,null,null,null,null,null,null,null,null,null,null,null,null,null,null,null,null,null,null,null,null,null,null,null,null,null,null,null,null,null,null,null,null,null,null,null,null,null,null,null,null,null,null,null,null,null,null,null,null,null,null,null,null,null,null,null,null,null,null,null,null,null,null,null,null,null,null,null,null,null,null,null,null,null,null,null,null,null,null,null,null,null,null,null,null,null,null,null,null,null,null,null,null,null,null,null,null,null,null,null,null,null,null,null,null,null,null,null,null,null,null,null,null,null,null,null,null,null,null,null,null,null,null,null,null,null,null,null,null,null,null,null,null,null,null,null,null,null,null,null,null,null,null,null,null,null,null,null,null,null,null,null,null,null,null,null,null,null,null,null,null,null,null,null,null,null,null,null,null,null,null,null,null,null,null,null,null,null,null,null,null,null,null,null,null,null,null,null,null,null,null,null,null,null,null,null,null,null,null,null,null,null,null,null,null,null,null,null,null,null,null,null,null,null,null,null,null,null,null,null,null,null,null,null,null,null,null,null,null,null,null,null,null,null,null,null,null,null,null,null,null,null,null,null,null,null,null,null,null,null,null,null,null,null,null,null,null,null,null,null,null,null,null,910]
[2023,43,43,1,4311450,"水俣川上流","桜野橋",2023,1205,1020,"12","12","2023.12",30,0,1,0.1,null,4,null,0,null,11,null,1,null,9.3000000000000007,null,11.1,null,null,null,null,">",0.5,null,7.9,null,10,null,0.6,null,1.4,null,4]
[2023,43,43,1,4311450,"水俣川上流","桜野橋",2024,109,1100,"1","01","2024.01",30,0,1,0.1,null,4,null,0,null,11,null,1,null,9.6999999999999993,null,8,null,null,null,null,">",0.5,null,7.9,null,12,"<",0.5,null,0.8,null,2,null,null,null,null,null,null,null,null,null,null,null,null,null,null,null,null,null,null,null,null,null,null,null,null,null,null,null,null,null,null,null,null,null,null,null,null,null,null,null,null,null,null,null,null,null,null,null,null,null,null,null,null,null,null,null,null,null,null,null,null,null,null,null,null,null,null,null,null,null,null,null,null,null,null,null,null,null,null,null,null,null,null,null,null,null,null,null,null,null,null,null,null,null,null,null,null,null,null,null,null,null,null,null,null,null,null,null,null,null,null,null,null,null,null,null,null,null,null,null,null,null,null,null,null,null,null,null,null,null,null,null,null,null,null,null,null,null,null,null,null,null,null,"<",1E-3,null,null,null,null,null,null,"<",6.0000000000000002E-5,"<",3.0000000000000001E-6,"<",5.0000000000000004E-6,"<",5.0000000000000004E-6,"<",3.0000000000000001E-6,"<",3.9999999999999998E-6,"<",1.9999999999999999E-6,"<",3.0000000000000001E-6,"<",1.9999999999999999E-6,"<",3.0000000000000001E-6,"<",9.9999999999999995E-7,"<",3.9999999999999998E-6,"<",1.9999999999999999E-6,"<",3.0000000000000001E-6,"<",5.9999999999999995E-4,null,1E-4,"<",3.0000000000000001E-5,"<",4.0000000000000003E-5,"<",5.0000000000000002E-5,"<",5.0000000000000002E-5,null,null,null,null,null,null,null,null,null,null,null,null,null,null,null,null,null,null,null,null,null,null,null,null,null,null,null,null,null,null,null,null,null,null,null,null,null,null,null,null,null,null,null,null,null,null,null,null,null,null,null,null,null,null,null,null,null,null,null,null,null,null,null,null,null,null,null,null,null,null,null,null,null,null,null,null,null,null,null,null,null,null,null,null,null,null,null,null,null,null,null,null,null,null,null,null,null,null,null,400]
[2023,43,43,1,4311450,"水俣川上流","桜野橋",2024,214,1315,"2","02","2024.02",30,0,1,0.1,null,4,null,0,null,11,null,1,null,18.8,null,12.5,null,null,null,null,">",0.5,null,7.9,null,10,"<",0.5,null,1,"<",1]
[2023,43,43,1,4311450,"水俣川上流","桜野橋",2024,305,1019,"3","03","2024.03",30,0,1,0.1,null,10,null,0,null,11,null,1,null,14.4,null,12.1,null,null,null,null,">",0.5,null,7.7,null,10,null,0.9,null,1.8,null,4,null,null,null,null,null,null,null,null,null,null,null,null,null,null,null,null,null,null,null,null,null,null,null,null,null,null,null,null,null,null,null,null,null,null,null,null,null,null,null,null,null,null,null,null,null,null,null,null,null,null,null,null,null,null,null,null,null,null,null,null,null,null,null,null,null,null,null,null,null,null,null,null,null,null,null,null,null,null,null,null,null,null,null,null,null,null,null,null,null,null,null,null,null,null,null,null,null,null,null,null,null,null,null,null,null,null,null,null,null,null,null,null,null,null,null,null,null,null,null,null,null,null,null,null,null,null,null,null,null,null,null,null,null,null,null,null,null,null,null,null,null,null,null,null,null,null,null,null,null,null,null,null,null,null,null,null,null,null,null,null,null,null,null,null,null,null,null,null,null,null,null,null,null,null,null,null,null,null,null,null,null,null,null,null,null,null,null,null,null,null,null,null,null,null,null,null,null,null,null,null,null,null,null,null,null,null,null,null,null,null,null,null,null,null,null,null,null,null,null,null,null,null,null,null,null,null,null,null,null,null,null,null,null,null,null,null,null,null,null,null,null,null,null,null,null,null,null,null,null,null,null,null,null,null,null,null,null,null,null,null,null,null,null,null,null,null,null,null,null,null,null,null,null,null,null,null,null,null,null,null,null,null,null,null,null,null,null,null,null,900]
[2024,43,43,1,4311450,"水俣川上流","桜野橋",2024,410,1105,"4","04","2024.04",30,0,1,0.1,null,2,null,0,null,11,null,1,null,16.7,null,15,null,null,null,null,">",0.5,null,7.4,null,11,"<",0.5,null,0.7,null,2,null,null,null,null,null,null,null,null,null,null,null,null,null,null,null,null,null,null,null,null,null,null,null,null,null,null,null,null,null,null,null,null,null,null,null,null,null,null,null,null,null,null,null,null,null,null,null,null,null,null,null,null,null,null,null,null,null,null,null,null,null,null,null,null,null,null,null,null,null,null,null,null,null,null,null,null,null,null,null,null,null,null,null,null,null,null,null,null,null,null,null,null,null,null,null,null,null,null,null,null,null,null,null,null,null,null,null,null,null,null,null,null,null,null,null,null,null,null,null,null,null,null,null,null,null,null,null,null,null,null,null,null,null,null,null,null,null,null,null,null,null,null,null,5.0000000000000001E-3,null,null,null,null,null,null,null,null,null,null,null,null,null,null,null,null,null,null,null,null,null,null,null,null,null,null,null,null,null,null,null,null,null,null,null,null,null,null,null,null,null,null,null,null,null,null,null,null,null,null,null,null,null,null,null,null,null,null,null,null,null,null,null,null,null,null,null,null,null,null,null,null,null,null,null,null,null,null,null,null,null,null,null,null,null,null,null,null,null,null,null,null,null,null,null,null,null,null,null,null,null,null,null,null,null,null,null,null,null,null,null,null,null,null,null,null,null,null,null,null,null,null,null,null,null,null,null,null,null,null,null,null,null,null,null,null,null,null,null,null,null,null,null,null,null,150]
[2024,43,43,1,4311450,"水俣川上流","桜野橋",2024,626,1055,"6","06","2024.06",30,0,1,0.1,null,10,null,0,null,11,null,1,null,22.7,null,19.2,null,null,null,null,">",0.5,null,7.7,null,8.9,null,1,null,1.6,null,3,null,null,null,null,null,null,null,null,null,null,null,null,null,null,null,null,null,null,null,null,null,null,null,null,null,null,null,null,null,null,null,null,null,null,null,null,null,null,null,null,null,null,null,null,null,null,null,null,null,null,null,null,null,null,null,null,null,null,null,null,null,null,null,null,null,null,null,null,null,null,null,null,null,null,null,null,null,null,null,null,null,null,null,null,null,null,null,null,null,null,null,null,null,null,null,null,null,null,null,null,null,null,null,null,null,null,null,null,null,null,null,null,null,null,null,null,null,null,null,null,null,null,null,null,null,null,null,null,null,null,null,null,null,null,null,null,null,null,null,null,null,null,"<",1E-3,null,null,null,null,null,null,null,null,null,null,null,null,null,null,null,null,null,null,null,null,null,null,null,null,null,null,null,null,null,null,null,null,null,null,null,null,null,null,null,null,null,null,null,null,null,null,null,null,null,null,null,null,null,null,null,null,null,null,null,null,null,null,null,null,null,null,null,null,null,null,null,null,null,null,null,null,null,null,null,null,null,null,null,null,null,null,null,null,null,null,null,null,null,null,null,null,null,null,null,null,null,null,null,null,null,null,null,null,null,null,null,null,null,null,null,null,null,null,null,null,null,null,null,null,null,null,null,null,null,null,null,null,null,null,null,null,null,null,null,null,null,null,null,null,null,130]
[2024,43,43,1,4311450,"水俣川上流","桜野橋",2024,819,1020,"8","08","2024.08",30,0,1,0.1,null,4,null,0,null,11,null,1,null,28.3,null,26.4,null,null,null,null,">",0.5,null,7.7,null,8.1999999999999993,null,2.2999999999999998,null,2.4,null,2,null,null,null,null,null,null,null,null,null,null,null,null,null,null,null,null,null,null,null,null,null,null,null,null,null,null,null,null,null,null,null,null,null,null,null,null,null,null,null,null,null,null,null,null,null,null,null,null,null,null,null,null,null,null,null,null,null,null,null,null,null,null,null,null,null,null,null,null,null,null,null,null,null,null,null,null,null,null,null,null,null,null,null,null,null,null,null,null,null,null,null,null,null,null,null,null,null,null,null,null,null,null,null,null,null,null,null,null,null,null,null,null,null,null,null,null,null,null,null,null,null,null,null,null,null,null,null,null,null,null,null,null,null,null,null,null,null,null,null,null,null,null,null,null,null,null,null,null,null,null,"<",6.0000000000000002E-5,null,null,null,null,null,null,null,null,null,null,null,null,null,null,null,null,null,null,null,null,null,null,null,null,null,null,"<",5.9999999999999995E-4,null,null,null,null,null,null,null,null,null,null,null,null,null,null,null,null,null,null,null,null,null,null,null,null,null,null,null,null,null,null,null,null,null,null,null,null,null,null,null,null,null,null,null,null,null,null,null,null,null,null,null,null,null,null,null,null,null,null,null,null,null,null,null,null,null,null,null,null,null,null,null,null,null,null,null,null,null,null,null,null,null,null,null,null,null,null,null,null,null,null,null,null,null,null,null,null,null,null,null,null,null,null,null,null,null,null,null,null,null,280]
[2024,43,43,1,4311450,"水俣川上流","桜野橋",2024,1001,1415,"10","10","2024.10",30,0,1,0.1,null,2,null,0,null,11,null,1,null,29.6,null,24.6,null,null,null,null,">",0.5,null,8.1999999999999993,null,8.3000000000000007,"<",0.5,null,1,"<",1,null,null,null,null,null,null,null,null,null,null,null,null,null,null,null,null,null,null,null,null,null,null,null,null,null,null,null,null,null,null,null,null,null,null,null,null,null,null,null,null,null,null,null,null,null,null,null,null,null,null,null,null,null,null,null,null,null,null,null,null,null,null,null,null,null,null,null,null,null,null,null,null,null,null,null,null,null,null,null,null,null,null,null,null,null,null,null,null,null,null,null,null,null,null,null,null,null,null,null,null,null,null,null,null,null,null,null,null,null,null,null,null,null,null,null,null,null,null,null,null,null,null,null,null,null,null,null,null,null,null,null,null,null,null,null,null,null,null,null,null,null,null,null,1E-3,null,null,null,null,null,null,null,null,null,null,null,null,null,null,null,null,null,null,null,null,null,null,null,null,null,null,null,null,null,null,null,null,null,null,null,null,null,null,null,null,null,null,null,null,null,null,null,null,null,null,null,null,null,null,null,null,null,null,null,null,null,null,null,null,null,null,null,null,null,null,null,null,null,null,null,null,null,null,null,null,null,null,null,null,null,null,null,null,null,null,null,null,null,null,null,null,null,null,null,null,null,null,null,null,null,null,null,null,null,null,null,null,null,null,null,null,null,null,null,null,null,null,null,null,null,null,null,null,null,null,null,null,null,null,null,null,null,null,null,null,null,null,null,null,null,100]
[2024,43,43,1,4311450,"水俣川上流","桜野橋",2024,1213,1125,"12","12","2024.12",30,0,1,0.1,null,2,null,0,null,11,null,1,null,12.2,null,10.6,null,null,null,null,">",0.5,null,8,null,11,null,1.2,null,1.2,"<",1,null,null,null,null,null,null,null,null,null,null,null,null,null,null,null,null,null,null,null,null,null,null,null,null,null,null,null,null,null,null,null,null,null,null,null,null,null,null,null,null,null,null,null,null,null,null,null,null,null,null,null,null,null,null,null,null,null,null,null,null,null,null,null,null,null,null,null,null,null,null,null,null,null,null,null,null,null,null,null,null,null,null,null,null,null,null,null,null,null,null,null,null,null,null,null,null,null,null,null,null,null,null,null,null,null,null,null,null,null,null,null,null,null,null,null,null,null,null,null,null,null,null,null,null,null,null,null,null,null,null,null,null,null,null,null,null,null,null,null,null,null,null,null,2E-3,null,null,null,null,null,null,null,null,null,null,null,null,null,null,null,null,null,null,null,null,null,null,null,null,null,null,null,null,null,null,null,null,null,null,null,null,null,null,null,null,null,null,null,null,null,null,null,null,null,null,null,null,null,null,null,null,null,null,null,null,null,null,null,null,null,null,null,null,null,null,null,null,null,null,null,null,null,null,null,null,null,null,null,null,null,null,null,null,null,null,null,null,null,null,null,null,null,null,null,null,null,null,null,null,null,null,null,null,null,null,null,null,null,null,null,null,null,null,null,null,null,null,null,null,null,null,null,null,null,null,null,null,null,null,null,null,null,null,null,null,null,null,null,null,null,87]
[2024,43,43,1,4311450,"水俣川上流","桜野橋",2025,204,1530,"2","02","2025.02",30,0,1,0.1,null,4,null,0,null,11,null,1,null,4.2,null,7.1,null,null,null,null,">",0.5,null,8.1,null,12,"<",0.5,null,1,null,2,null,null,null,null,null,null,null,null,null,null,null,null,null,null,null,null,null,null,null,null,null,null,null,null,null,null,null,null,null,null,null,null,null,null,null,null,null,null,null,null,null,null,null,null,null,null,null,null,null,null,null,null,null,null,null,null,null,null,null,null,null,null,null,null,null,null,null,null,null,null,null,null,null,null,null,null,null,null,null,null,null,null,null,null,null,null,null,null,null,null,null,null,null,null,null,null,null,null,null,null,null,null,null,null,null,null,null,null,null,null,null,null,null,null,null,null,null,null,null,null,null,null,null,null,null,null,null,null,null,null,null,null,null,null,null,null,null,null,null,null,null,null,null,null,null,null,null,null,null,null,null,null,null,null,null,null,null,null,null,null,null,null,null,null,null,null,null,null,null,null,null,null,null,null,null,null,null,null,null,null,null,null,null,null,null,null,null,null,null,null,null,null,null,null,null,null,null,null,null,null,null,null,null,null,null,null,null,null,null,null,null,null,null,null,null,null,null,null,null,null,null,null,null,null,null,null,null,null,null,null,null,null,null,null,null,null,null,null,null,null,null,null,null,null,null,null,null,null,null,null,null,null,null,null,null,null,null,null,null,null,null,null,null,null,null,null,null,null,null,null,null,null,null,null,null,null,null,null,null,null,null,null,null,null,null,null,null,null,null,41]

{"sheet":"グラフ","index":1,"n_rows":24,"n_cols":19,"rows_kept":24,"cut":false,"hidden":false,"merged":[]}
[null,null,null,null,null,null,null,null,null,null,null,null,null,null,"項目","基準値",null,"項目","基準値"]
[null,null,null,null,null,null,null,null,null,null,null,null,null,1,null,null,21,null,"0.04mg/L以下"]
[null,null,null,null,null,null,null,null,null,null,null,null,null,2,null,null,22,null,"1mg/L以下"]
[null,null,null,null,null,null,null,null,null,null,null,null,null,3,null,null,23,null,"0.006mg/L以下"]
[null,null,null,null,null,null,null,null,null,null,null,null,null,4,null,null,24,null,"0.01mg/L以下"]
[null,null,null,null,null,null,null,null,null,null,null,null,null,5,null,null,25,null,"0.01mg/L以下"]
[null,null,null,null,null,null,null,null,null,null,null,null,null,6,null,null,26,null,"0.002g/L以下"]
[null,null,null,null,null,null,null,null,null,null,null,null,null,7,null,null,27,null,"0.006mg/L以下"]
[null,null,null,null,null,null,null,null,null,null,null,null,null,8,null,null,28,null,"0.003mg/L以下"]
[null,null,null,null,null,null,null,null,null,null,null,null,null,9,null,null,29,null,"0.02mg/L以下"]
[null,null,null,null,null,null,null,null,null,null,null,null,null,10,null,"0.003mg/L以下",30,null,"0.01mg/L以下"]
[null,null,null,null,null,null,null,null,null,null,null,null,null,11,null,"検出されないこと",31,null,"0.01mg/L以下"]
[null,null,null,null,null,null,null,null,null,null,null,null,null,12,null,"0.01mg/L以下",32,null,"10mg/L以下"]
[null,null,null,null,null,null,null,null,null,null,null,null,null,13,null,"0.02mg/L以下",33,null,"0.8mg/L以下"]
[null,null,null,null,null,null,null,null,null,null,null,null,null,14,null,"0.01mg/L以下",34,null,"1mg/L以下"]
[null,null,null,null,null,null,null,null,null,null,null,null,null,15,null,"0.0005mg/L以下",35,null,"0.05mg/L以下"]
[null,null,null,null,null,null,null,null,null,null,null,null,null,16,null,"検出されないこと"]
[null,null,null,null,null,null,null,null,null,null,null,null,null,17,null,"0.02mg/L以下"]
[null,null,null,null,null,null,null,null,null,null,null,null,null,18,null,"0.002mg/L以下"]
[null,null,null,null,null,null,null,null,null,null,null,null,null,19,null,"0.004mg/L以下"]
[null,null,null,null,null,null,null,null,null,null,null,null,null,20,null,"0.1mg/L以下"]
[null,null,null,null,null,null,null,null,null,null,null,null,null,null,"※見たい項目をクリックして下さい。"]
[null,"※有効数字は２桁",null,null,null,null,null,null,null,null,null,null,null,null,"※（　　）内の数字は報告下限値（単位：mg/L）"]
[null,"※元データ（測定結果）は、「データシート」を確認ください。"]